Cogmind - Beta 15 @@@ ROGUE MODE // 2025.09.06 @ 05:03:03 Player: lepire Result: Destroyed by G-47 Trooper with Particle Gun Performance ------------- Evolutions (1) 500 Regions Visited (3) 600 Robots Destroyed (31) 155 Value Destroyed (521) 521 Prototype IDs (1) 20 Alien Tech Used (0) 0 Bonus (0) 0 TOTAL SCORE: 1796 Bonus ------- None Cogmind --------- Core Integrity 0/400 Matter 297/300 Energy 100/100 System Corruption 0% Temperature Cool (9) Movement Core (150) Ox2 Location -9/Mines Parts ------- > --- POWER (1) -------- (None) > --- PROPULSION (2) --- (None) > --- UTILITY (4) ------ Small Storage Unit Structural Scanner ECM Suite > --- WEAPON (2) ------- (None) > --- INVENTORY (8) ---- Cooled Ion Engine Visual Processing Unit Signal Interpreter Improved Terrain Scanner Terrain Scan Processor Improved Propulsion Shielding Datajack Mining Laser Peak State ------------ > --- POWER ------------ Cooled Ion Engine > --- PROPULSION ------- Armored Treads Aluminum Leg > --- UTILITY ---------- Small Storage Unit Structural Scanner Seismic Detector ECM Suite > --- WEAPON ----------- Medium Laser Assault Rifle > --- INVENTORY -------- Light Ion Engine Visual Processing Unit Signal Interpreter Improved Terrain Scanner Terrain Scan Processor Datajack Mining Laser [Rating: 14] Favorites ----------- Power Light Ion Engine Engine Light Ion Engine Propulsion Aluminum Leg Treads Armored Treads Leg Aluminum Leg Utility Small Storage Unit Device Seismic Detector Storage Small Storage Unit Weapon Assault Rifle Energy Gun Medium Laser Ballistic Gun Assault Rifle Special Weapon Mining Laser Build | -11 -10 -9 -9 ------- Run | Yrd Mat Mat Min Slots Evolved 2 | . . 2 . Power . | . . . . Propulsion . | . . . . Utility 2 | . . 2 . Weapon . | . . . . Parts Attached 16 | 7 3 6 . Power 3 | 1 1 1 . Engine 3 | 1 1 1 . Core . | . . . . Reactor . | . . . . Propulsion 4 | 2 . 2 . Treads 2 | . . 2 . Leg 2 | 2 . . . Wheel . | . . . . Hover . | . . . . Flight . | . . . . Utility 4 | 2 1 1 . Device 3 | 1 1 1 . Storage 1 | 1 . . . Processor . | . . . . Hackware . | . . . . Protection . | . . . . Artifact . | . . . . Weapon 5 | 2 1 2 . Energy Gun 1 | 1 . . . Energy Cannon . | . . . . Ballistic Gun 3 | 1 . 2 . Ballistic Cannon . | . . . . Launcher . | . . . . Special Weapon 1 | . 1 . . Impact Weapon . | . . . . Slashing Weapon . | . . . . Piercing Weapon . | . . . . Special Melee Weapon . | . . . . Unidentified Prototypes 1 | . 1 . . Parts Lost 9 | . . 8 1 Power 1 | . . 1 . Propulsion 4 | . . 3 1 Utility 1 | . . 1 . Weapon 3 | . . 3 . Highest Loss Streak 6 | . . 5 6 To Critical Strikes . | . . . . Average Backups 6 | 1 5 7 8 Power . | . 1 1 1 Propulsion . | . . . . Utility 3 | . 2 4 5 Weapon 1 | . 1 1 1 Tool/Special . | . . . . Unused Backups 7 | . 1 . 6 Power . | . . . . Propulsion 1 | . 1 . . Utility 5 | . . . 5 Weapon . | . . . . Tool/Special 1 | . . . 1 Average Slot Usage (%) 96 | . 100 95 40 Engine 11 | . 14 10 . Treads 5 | . . 8 7 Leg 17 | . 28 11 . Device 25 | . 14 32 22 Storage 12 | . 14 11 11 Energy Gun 8 | . 13 5 . Ballistic Gun 12 | . 14 11 . Special Weapon 2 | . . 3 . Peak Build Rating 14 | 7 10 14 5 Average Rating 9 | 5 7 11 4 On Entrance 5 | . 7 10 5 Naked Turns . | . . . . Heaviest Build 21 | 15 18 21 8 Greatest Support 40 | 20 20 40 20 Greatest Overweight (x) 2 | 2 . 2 2 Average Overweight (x) . | . . . . Largest Inventory Capacity 8 | 8 8 8 8 Average Capacity 7 | 7 8 8 8 Most Carried 8 | 4 8 8 8 Average Carried 6 | 1 5 7 8 Final Capacity 8 | 8 8 8 8 Final Carried 8 | 4 8 8 8 Class Distribution -------------------- 49% | Infiltrator-Mutant 39% | Mutant 11% | Scavenger-Mutant Dominant Class ---------------- Mutant | -10/Materials Infiltrator-Mutant | -9/Materials Infiltrator-Mutant | -9/Mines Resources | -11 -10 -9 -9 ----------- Run | Yrd Mat Mat Min Matter Collected 730 | 226 169 335 . Remotely . | . . . . Salvage Created 826 | 131 189 506 . Parts 64 | 12 15 37 . Haulers Intercepted . | . . . . Recyclers Shooed . | . . . . Parts Field Recycled . | . . . . Retrieved Matter . | . . . . Parts Self-Destructed . | . . . . Prevented . | . . . . Kills | -11 -10 -9 -9 ------- Run | Yrd Mat Mat Min Combat Hostiles Destroyed 20 | . 7 13 . Guns 20 | . 7 13 . Classes Destroyed 9 | 2 4 3 . Worker 2 | . . 2 . Builder 1 | . 1 . . Tunneler 3 | 3 . . . Recycler 1 | 1 . . . Operator 2 | . 1 1 . Watcher 2 | . . 2 . Swarmer 13 | . 6 7 . Grunt 2 | . 1 1 . Sentry 5 | . . 5 . Best Kill Streak 3 | 2 3 3 . Combat Bots Only 3 | . 3 3 . Max Kills in Single Turn 2 | 1 2 1 . Gunslinging 1 | . 1 . . Exploded . | . . . . Melee . | . . . . Uniques/NPCs Destroyed . | . . . . Combat | -11 -10 -9 -9 -------- Run | Yrd Mat Mat Min Hostile Shots Fired 181 | . 21 139 21 Missed 48 | . 3 38 7 Hits 133 | . 18 101 14 Projectile 133 | . 18 101 14 Critical Strikes 4 | . . 4 . Damage Taken 1638 | . 151 1308 179 Core 418 | . 9 314 95 Absorbed by Shields . | . . . . Core Remaining (%) 98 | 100 96 . . Volleys Fired 118 | 10 25 83 . Largest 2 | 2 2 2 . Hottest 150 | 70 100 150 . Shots Fired 212 | 15 47 150 . Gun 202 | 15 44 143 . Cannon . | . . . . Launcher . | . . . . Special 10 | . 3 7 . Kinetic 139 | 10 22 107 . Thermal 73 | 5 25 43 . Explosive . | . . . . Electromagnetic . | . . . . Robot Hit Streak 18 | 6 6 18 . Robot Miss Streak 7 | 2 4 7 . Penetration Max . | . . . . Secondary Targets 1 | . 1 . . Max Gunslinging Chain 1 | . 1 . . Shots Hit Robots 123 | 11 23 89 . Core Hits 52 | 5 11 36 . Critical Kills . | . . . . Critical Parts Destroyed . | . . . . Critical Strikes 1 | . . 1 . Burn 1 | . . 1 . Melee Attacks . | . . . . Impact . | . . . . Slashing . | . . . . Piercing . | . . . . Sneak Attacks . | . . . . Combat Hostiles . | . . . . Follow-up Attacks . | . . . . Damage Inflicted 1308 | 126 314 868 . Guns 1289 | 126 310 853 . Cannons . | . . . . Explosions . | . . . . Melee . | . . . . Ramming 19 | . 4 15 . Kinetic 901 | 88 162 651 . Thermal 388 | 38 148 202 . Explosive . | . . . . Electromagnetic . | . . . . Impact . | . . . . Slashing . | . . . . Piercing . | . . . . Highest Corruption 1 | . 1 . . Average Corruption 1 | . 1 . . Corruption Purged . | . . . . Corruption Blocked . | . . . . Effects 1 | . 1 . . Matter Fused 1 | . 1 . . Overload Shots . | . . . . Overflow Damage . | . . . . Projectiles . | . . . . Explosions . | . . . . Melee . | . . . . Knockbacks . | . . . . Impact . | . . . . Kinetic . | . . . . Secondary . | . . . . Self-Inflicted Damage . | . . . . Shots . | . . . . Rammed 3 | . . 3 . Targets Rammed 5 | . 1 4 . Kicked 1 | . 1 . . Crushed 1 | . . 1 . Highest Temperature 74 | 27 45 74 . Average Temperature 13 | 12 10 16 . Received Heat Transfer 534 | . 12 420 102 Siege Activations . | . . . . Martial Activations . | . . . . Shielding Activations . | . . . . Robots Disrupted . | . . . . Combat Hostiles . | . . . . Robots Corrupted . | . . . . Combat Hostiles . | . . . . Parts Fried . | . . . . Impact Corruptions . | . . . . Robots Melted . | . . . . Combat Hostiles . | . . . . Parts Melted 1 | . . 1 . Heat Transferred 1221 | 111 444 666 . Parts Sabotaged . | . . . . Parts Stolen . | . . . . Parts Stripped . | . . . . Power Chain Reactions . | . . . . Alert | -11 -10 -9 -9 ------- Run | Yrd Mat Mat Min Maximum Alert Level . | . . . . Low Security (%) 100 | 100 100 100 100 Level 1 . | . . . . Level 2 . | . . . . Level 3 . | . . . . Level 4 . | . . . . Level 5 . | . . . . High Security . | . . . . Max Security . | . . . . Peak Influence 75 | 10 71 75 5 Initial 5 | . . 1 5 Average 18 | 2 17 19 3 Influence Increases 613 | 20 196 397 . Destroy 0b10 Robot/C 400 | . 140 260 . Destroy 0b10 Robot/NC 55 | 20 10 25 . Destroy Leader 114 | . 30 84 . Successful Hack 34 | . 12 22 . Destroy Structure 10 | . 4 6 . Influence Decreases 613 | 20 190 389 14 Entered New Map 14 | . . 5 9 Time Decay 534 | 20 190 324 . Lost Part 65 | . . 60 5 Squads Dispatched 4 | . 2 2 . Investigation 1 | . . 1 . Extermination . | . . . . Reinforcement 3 | . 2 1 . Assault . | . . . . Garrison . | . . . . Intercept . | . . . . Searches Triggered . | . . . . Construction Impeded . | . . . . Haulers Reinforced . | . . . . Active Scanning Responses . | . . . . Cargo Convoy Interrupts . | . . . . Stealth | -11 -10 -9 -9 --------- Run | Yrd Mat Mat Min Distress Signals 6 | . . 6 . Communications Jammed . | . . . . Distress Signals . | . . . . Times Spotted 48 | . 14 31 3 Peak Tracking Total 4 | . 3 4 3 Tactical Retreats 5 | . . 5 . Traps | -11 -10 -9 -9 ------- Run | Yrd Mat Mat Min Traps Triggered 1 | . . 1 . Indirectly . | . . . . Trap Hack Attempts . | . . . . Triggered . | . . . . Disarmed . | . . . . Reprogrammed . | . . . . Reused . | . . . . Traps Extracted . | . . . . Installed . | . . . . Triggered . | . . . . Machines | -11 -10 -9 -9 ---------- Run | Yrd Mat Mat Min Machines Disabled . | . . . . Max in Single Turn . | . . . . Machines Repaired . | . . . . Machines Dismantled . | . . . . Machines Sabotaged . | . . . . Overloaded Fab Kills . | . . . . Hacking | -11 -10 -9 -9 --------- Run | Yrd Mat Mat Min Machines Accessed 11 | . 5 6 . Terminals 11 | . 5 6 . Fabricators . | . . . . Repair Stations . | . . . . Recycling Units . | . . . . Scanalyzers . | . . . . Garrison Access . | . . . . Total Hacks 29 | . 12 17 . Successful 9 | . 4 5 . Failed 20 | . 8 12 . Catastrophic 5 | . 2 3 . Database Lockouts . | . . . . Manual 21 | . 6 15 . Terminals 29 | . 12 17 . Fabricators . | . . . . Repair Stations . | . . . . Recycling Units . | . . . . Scanalyzers . | . . . . Garrison Access . | . . . . Terminal Hacks 8 | . 4 4 . Locate Traps 2 | . 1 1 . Zone Layout 6 | . 3 3 . Fabricator Hacks . | . . . . Repair Station Hacks . | . . . . Recycling Unit Hacks . | . . . . Scanalyzer . | . . . . Garrison Access Hacks . | . . . . Unauthorized Hacks 1 | . . 1 . Terminals 1 | . . 1 . Assimilate 1 | . . 1 . Fabricators . | . . . . Repair Stations . | . . . . Recycling Units . | . . . . Scanalyzers . | . . . . Garrison Access . | . . . . Data Cores Recovered . | . . . . Used . | . . . . Hacking Detections 8 | . 4 4 . Full Trace Events 3 | . 1 2 . Feedback Events 1 | . 1 . . Corruption 1 | . 1 . . Feedback Blocked . | . . . . Robot Schematics Acquired . | . . . . Robots Built . | . . . . Authchips . | . . . . Time . | . . . . Total Robot Build Rating . | . . . . Part Schematics Acquired . | . . . . Parts Built . | . . . . Authchips . | . . . . Time . | . . . . Total Part Build Rating . | . . . . Parts Repaired . | . . . . Time . | . . . . Parts Recycled . | . . . . Recycled Matter . | . . . . Retrieved Matter . | . . . . Retrieved Components . | . . . . Parts Scanalyzed . | . . . . Part Schematics Acquired . | . . . . Parts Damaged . | . . . . Bothacking | -11 -10 -9 -9 ------------ Run | Yrd Mat Mat Min Used RIF Installer . | . . . . Robots Hacked . | . . . . Non-combat . | . . . . Combat . | . . . . Robot Hacks Applied . | . . . . Relay Couplers Released . | . . . . Fabnet Peak Effective % . | . . . . Robots Rewired . | . . . . Allies Hacked . | . . . . Hacks Repelled . | . . . . Allies | -11 -10 -9 -9 -------- Run | Yrd Mat Mat Min Total Allies . | . . . . Largest Group . | . . . . Highest-Rated Group . | . . . . Highest-Rated Ally . | . . . . Total Orders . | . . . . Ally Attacks . | . . . . Total Damage . | . . . . Kills . | . . . . Allies Corrupted . | . . . . Allies Melted . | . . . . Intel | -11 -10 -9 -9 ------- Run | Yrd Mat Mat Min Active Infowar (turns) 2071 | 52 728 1275 16 Structural 1291 | . . 1275 16 Seismic 1983 | 52 677 1254 . ECM 1312 | . 51 1261 . Robot Analysis Total . | . . . . Derelict Logs Recovered . | . . . . Drone Launches . | . . . . Drone Recoveries . | . . . . Exploration | -11 -10 -9 -9 ------------- Run | Yrd Mat Mat Min Turns Passed 2129 | 110 728 1275 16 Spaces Moved 1063 | 61 410 582 10 Core 10 | 6 . . 4 Treads 361 | . . 355 6 Legs 692 | 55 410 227 . Wheels . | . . . . Hover . | . . . . Flight . | . . . . Fastest Speed 50 | 50 120 120 150 Average Speed 142 | 116 120 160 156 Slowest Speed 260 | 150 120 260 160 Overloaded Moves . | . . . . Propulsion Burnouts . | . . . . Robots Hopped . | . . . . Potential Cave-ins . | . . . . Cave-ins Triggered . | . . . . Exploration Rate (%) 28 | 6 57 47 4 Regions Visited 3 Branch Regions 1 Pre-discovered Areas . | . . . . Known Exits Taken . | . . . . Unknown Exits Taken 3 | 1 1 1 . Scrap Searched . | . . . . Spaces Dug 8 | . 3 5 . Terrain Destroyed 9 | . 3 6 . Melee . | . . . . Projectile 9 | . 3 6 . AOE . | . . . . Terrain Rammed . | . . . . Walls Destroyed . | . . . . Machines Disabled . | . . . . Actions | -11 -10 -9 -9 --------- Run | Yrd Mat Mat Min Total 1448 | 82 591 765 10 Wait 215 | . 145 70 . Move 1060 | 60 409 581 10 Hop . | . . . . Pick Up 13 | 5 5 3 . Fast Attach 9 | 6 . 3 . Attach 8 | 1 . 7 . Detach 4 | . . 4 . Swap 15 | . 5 10 . Drop 1 | . 1 . . Fire 118 | 10 25 83 . Melee . | . . . . Ram . | . . . . Kick 1 | . 1 . . Crush 4 | . . 4 . Escape Stasis . | . . . . Rewire . | . . . . Trap . | . . . . Miscellaneous . | . . . . Route ------- -11/Scrapyard -10/Materials (discovered 2 exits: *Mat / [*Min]) -9/Materials -9/Mines History --------- Turn | Location | Event 11 | -11/Scrapyard | Discovered new exit (range 15) 111 | -11/Scrapyard | Entered Materials 302 | -10/Materials | Build established: Mutant 544 | -10/Materials | Discovered new exit (range 5) 591 | -10/Materials | Discovered new exit (range 5) 839 | -10/Materials | Entered another Materials area 839 | -9/Materials | Evolved 2 slots: Utility x2 1130 | -9/Materials | Build established: Infiltrator-Mutant 2080 | -9/Materials | Core integrity fell below 50% 2105 | -9/Materials | Discovered new exit (range 7) 2114 | -9/Materials | Entered Mines 2116 | -9/Mines | Core integrity fell below 20% 2130 | -9/Mines | Destroyed by G-47 Trooper with Particle Gun Last Messages --------------- within the floor. 02052_ Lgt. Assault Rifle severed. 02055_ Acquired Lgt. Assault Rifle. 02061_ Lgt. Ion Engine destroyed. 02062_ U-05 Engineer lays Concrete. 02082_ Critical hit (Burn: +37). 02085_ Lgt. Assault Rifle destroyed. 02093_ Seismic Detector destroyed. 02095_ Lgt. Assault Rifle destroyed. 02097_ Crushed K-01 Serf. 02097_ K-01 Serf destroyed. 02097_ K-01 Serf collects debris. 02099_ Arm. Treads destroyed. 02100_ K-01 Serf collects debris. 02105_ EXIT=FOUND 02105_ K-01 Serf collects debris. LOCATION=UNKNOWN GOAL=ESCAPE Something is scanning the area. 02124_ Lgt. Treads destroyed. Map ----- +----------------------------------------------------+ | | | | | | | | | | | ???????????????????????????????????????? | | ???????????????????????????????????????? | | ???????????????????????????????????????? | | ???????????????????????????????????????? | | ???????????????????????????????????????? | | ???????????????????????????????????????? | | ?????????############??????????????????? | | ?????????############??????????????????? | | ?????????## ##??????????????????? | | ?????????## g ##??????????????????? | | ????????? # ##??????????????????? | | ????????? # g ##??????????????????? | | ????????? # ##??????????????????? | | ????????? # g ######??????????????? | | ????????? ##### #########???? ##???????? | | ????????? ##### ##???????? | | ?????????????## #########????###???????? | | ?????????????## #########??????????????? | | ?????????????## ##?????????????????????? | | ?????????????## ##?????????????????????? | | ?????????????##@##?????????????????????? | | ?????????????## ##?????????????????????? | | ?????????????## ##?????????????????????? | | ????????????? ##?????????????????????? | | ?????????????#####?????????????????????? | | ?????????????#####?????????????????????? | | ???????????????????????????????????????? | | ???????????????????????????????????????? | | ???????????????????????????????????????? | | ???????????????????????????????????????? | | ???????????????????????????????????????? | | ???????????????????????????????????????? | | ???????????????????????????????????????? | | ???????????????????????????????????????? | | ???????????????????????????????????????? | | ???????????????????????????????????????? | | ???????????????????????????????????????? | | ???????????????????????????????????????? | | ???????????????????????????????????????? | | ???????????????????????????????????????? | | ???????????????????????????????????????? | | ???????????????????????????????????????? | | ???????????????????????????????????????? | | ???????????????????????????????????????? | | ???????????????????????????????????????? | +----------------------------------------------------+ Best States ------------- Heat Dissipation 28 Energy Generation 14 Energy Capacity 280 Matter Stores 300 Matter Capacity 300 Sight Range 16 Terrain Scan Density 10 ECM Strength 1 Evasion (%) 55 Recoil Reduction 2 Item Schematics ----------------- None Robot Schematics ------------------ None Fabricated ------------ Nothing Repaired ---------- Nothing Alien Tech Used ----------------- None Achievements -------------- None Challenges ------------ None Game ------ Seed ContainmentMeleeRigger Manual? 0 Play Time 00:20:34 Cumulative 36.7 hours Start 2025.09.06 @ 04:42:26 End 2025.09.06 @ 05:03:03 Sessions 1 Manual Loads 0 Difficulty Rogue Special Mode None Game No. 48 Rogue 18 Adventurer 30 Explorer 0 Win Type - Total 0 Types 0/0/0/0/0/0/0/0/0/0 Lore% 14 Gallery% 23 Achievement% 23 Wizard Run 0 Options --------- Layout 1 ASCII 0 Keyboard 1 Movement Arrows Keybinds 0 Fullscreen 1 Font 24/Terminus Map View 50x35 Zoom Use 0% Tactical HUD 1 Map Filters NONE Filters NONE Steam 1 RUN: b54696e1-e682-4f44-a3c4-39d2c8d681e2